[Event "Svetozar Gligoric Masters 2022"]
[Site "Belgrade"]
[Date "2022.07.22"]
[Round "8.14"]
[White "Arias Gaviria, Mario Alexis"]
[Black "Stoyanov, Tsvetan"]
[Result "0-1"]
[ECO "A46"]
[WhiteElo "2231"]
[BlackElo "2450"]
[Annotator "TA"]
[PlyCount "214"]
[EventDate "2022.07.18"]
[EventCountry "SRB"]
[SourceTitle "playchess.com"]
[Source "ChessBase"]
[SourceQuality "1"]
[TimeControl "40/5400+30:900+30"]

{[%evp 9,214,8,12,15,7,-13,0,0,15,14,0,-35,-39,-39,-41,-33,-37,-32,0,0,0,0,0,0,0,0,0,-33,-27,-31,-31,-37,-34,-67,-62,-69,-62,-63,-64,-81,-81,-80,-80,-117,-106,-164,-75,-75,-77,-69,-71,-154,-153,-154,-154,-154,-154,-154,-153,-153,-153,-153,-153,-154,-154,-154,-154,-154,-154,-168,-154,-154,-154,-154,-154,-154,-154,-154,-154,-154,-154,-154,-154,-154,-154,-154,-154,-154,-154,-197,-197,-243,-225,-208,-208,-392,-392,-424,-181,-181,-181,-181,-174,-175,-175,-181,-181,-175,-175,-181,-175,-316,-175,-181,-174,-174,-174,-189,-189,-181,-174,-174,-174,-174,-174,-174,-174,-174,-174,-174,-174,-174,-174,-174,-174,-174,-174,-174,-174,-174,-174,-174,-174,-174,-174,-174,-174,-174,-174,-174,-174,-174,-174,-174,-86,-174,-174,-174,-174,-174,-174,-174,-174,-174,-174,-174,-174,-174,-174,-174,-174,-174,-174,-174,0,-174,-174,-174,-174,-174,-174,-29975,-29975,-29975,-29976,-29979,-29980,-29990,-29991,-29991,-29992,-29992,-29993,-29993,-29994,-29994,-29988,-29995,-29994,-29997,-29997,-29997,-29997,-29997,-29998,-29998,-29999]} 1. d4 Nf6 2. Nf3 d5 3. g3 e6 4. Bg2 b5 5. O-O c5 6. Bg5 {A46: 1 d4 Nf6 2 Nf3 e6: Torre, London and Colle Systems.} Nbd7 7. Nbd2 {[%cal Oe2e4]} Bb7 8. c3 {[%cal Bc2c3,Bc3c4][%mdl 32] The position is equal.} Be7 9. a4 b4 10. c4 O-O 11. Re1 {[#]} h6 $146 ({Predecessor:} 11... a5 12. Rc1 Rc8 13. cxd5 exd5 14. dxc5 Bxc5 15. Nb3 Bxf2+ 16. Kxf2 Ne4+ 17. Kf1 Nxg5 18. Rxc8 Bxc8 19. Qxd5 Nxf3 20. Bxf3 {½-½ (40) Lindgren,F (2195)-Ornstein,A (2361) Sweden 2012}) 12. Bxf6 Bxf6 (12... gxf6 13. cxd5 Bxd5 14. e4 $16) 13. cxd5 exd5 (13... Bxd5 $5 {[%cal Rc5d4]} 14. e4 Bb7 $11) 14. e4 dxe4 15. Nxe4 Bxe4 16. Rxe4 Rc8 17. Ne5 cxd4 18. Rxd4 Bxe5 19. Rxd7 Qf6 20. Qf3 Bxb2 21. Rb1 a5 22. Rd5 Qxf3 $1 23. Bxf3 Bc3 24. Rxa5 b3 $1 25. Rb5 b2 26. Kg2 Rc4 $1 27. Rb3 {[#]} (27. Bd1 $17) 27... Bd4 (27... Bf6 $1 $19 28. a5 Ra4) 28. a5 $17 Ra4 29. Rd1 {[%cal Oa5a6]} Bf6 30. Rd6 (30. Rd5 $142) 30... Rxa5 31. Rxf6 gxf6 32. Rxb2 {[%mdl 4096] Endgame KRR-KRB} Rd8 33. Rb4 Kg7 34. Rg4+ Rg5 35. Rf4 Rd2 36. h4 Ra5 37. Rg4+ Kf8 {aiming for ...Raa2.} 38. Rf4 f5 39. Bb7 Rc5 40. Bf3 Kg7 41. Bh5 Kf6 42. Ra4 Rcc2 43. Rf4 Ke6 44. Kf1 Rc1+ 45. Kg2 Kf6 46. Bg4 Rc5 47. Bh5 Ke6 48. Kf1 Rcd5 49. Be2 R5d4 50. Rf3 (50. Rxd4 {might work better.} Rxd4 51. f4) 50... Ke5 51. Ra3 f4 52. g4 $2 (52. Ra7) 52... Rb2 $19 53. Ba6 f3 (53... Rdd2 $142 54. Rf3 f5) 54. Rxf3 Rxg4 {...Rb1+ is the strong threat.} 55. Rxf7 Rxh4 56. Be2 Re4 57. Bf3 {Black must now prevent Re7+.} Rf4 58. Re7+ Kf6 59. Re3 Rb5 60. Rc3 (60. Bc6 $142 Rb2 61. Bf3) 60... Rg5 (60... Rbf5 $142 61. Kg2 h5) 61. Bb7 Kg6 62. Bc8 h5 63. Rc6+ Rf6 64. Rc4 Rg3 65. Bd7 Rgf3 66. Rc2 Kh6 67. Kg2 Rd3 68. Bc8 Rg6+ 69. Kh2 Rgd6 70. Kg2 Rd2 71. Rxd2 Rxd2 {KR-KB} 72. Kg3 Rd8 73. Be6 Rd6 74. Bf5 Rd1 75. Kg2 Kg5 76. Bc8 Rd8 77. Bb7 Rg8 78. Bd5 Rg7 79. Bc6 Kf4+ 80. Kh3 Rc7 81. Bd5 Rc2 (81... h4 $19 {has better winning chances.} 82. Kg2 Rd7) 82. Kg2 (82. Kh4 $17) 82... Rc5 83. Bb7 Kg4 84. Bf3+ Kh4 ({Avoid the trap} 84... Kf4 $2 85. Bd1 $19) 85. Be2 Rg5+ 86. Kh2 Re5 ({Don't blunder} 86... Rf5 $2 87. Kg2 $19) 87. Bf3 Kg5 ({Don't go for} 87... Rf5 $2 88. Kg2 $19) 88. Kg2 Ra5 89. Bc6 Ra3 90. Bd5 Rc3 91. Bf7 Ra3 $2 (91... h4 $19 {( -> ...h3+)} 92. f3 Rd3) 92. Be6 $2 (92. Bd5 $1 $11 Rd3 93. Be6) 92... Kf4 93. Bd5 Rc3 94. Bb7 h4 {[%cal Bh5h4,Bh4h3][%mdl 32]} 95. Bd5 $2 {[#]} (95. Kh2 $19) 95... h3+ $1 {Black mates.} 96. Kh2 Kg4 97. Be6+ Kh4 98. Bd5 Rc2 99. Kg1 Rc1+ 100. Kh2 Rf1 101. Be6 Rxf2+ 102. Kg1 Rb2 103. Bf5 Kg3 104. Kh1 Rf2 {[%cal Rf2f1]} 105. Bd3 Rd2 106. Bf1 Rd1 {[%cal Rd1f1]} 107. Kg1 h2+ {Weighted Error Value: White=0.15 (very precise) /Black=0.10 (very precise)} 0-1

[Event "Svetozar Gligoric Masters 2022"]
[Site "Belgrade"]
[Date "2022.07.22"]
[Round "8.15"]
[White "Harikrishnan.A.Ra"]
[Black "Sanket Chakravarty"]
[Result "1/2-1/2"]
[ECO "D46"]
[WhiteElo "2396"]
[BlackElo "2209"]
[Annotator "TA"]
[PlyCount "110"]
[EventDate "2022.07.18"]
[EventCountry "SRB"]
[SourceTitle "playchess.com"]
[Source "ChessBase"]
[SourceQuality "1"]
[TimeControl "40/5400+30:900+30"]

{[%evp 17,110,11,21,13,22,16,39,41,24,23,18,19,14,14,27,26,22,16,19,8,20,23,22,15,28,6,18,14,13,0,11,0,29,26,97,21,21,21,27,25,47,7,21,14,84,17,107,20,20,24,125,37,35,35,57,36,62,2,30,0,0,0,0,0,73,64,106,106,106,106,101,79,94,88,80,0,0,0,0,0,0,0,0,0,0,0,0,0,0,0,0,0,0,0,0]} 1. d4 d5 2. Nf3 e6 3. c4 Nf6 4. Nc3 c6 5. e3 Nbd7 6. b3 Bd6 7. Bb2 O-O 8. Bd3 e5 9. cxd5 cxd5 {And now ...e4 would win.} 10. dxe5 {D46: Semi-Slav: 5 e3 Nbd7 6 Bd3, Black avoids the Meran.} Nxe5 11. Be2 Nxf3+ 12. Bxf3 {White is slightly better.} Be5 {[#]} 13. Na4 $146 ({Predecessor:} 13. O-O Bf5 14. Qd2 Qe7 15. Nxd5 Nxd5 16. Bxe5 Rfd8 17. Bd4 Be4 18. Bxe4 Qxe4 19. Rac1 {½-½ (45) Ding,L (2791)-Vachier Lagrave,M (2778) Chess.com INT 2020}) 13... Qd6 14. Bxe5 Qxe5 15. O-O Bd7 16. Nc5 Bb5 17. Re1 Rac8 18. Nd3 Bxd3 19. Qxd3 Rc3 20. Qb5 b6 21. Qa4 Rc7 22. Rad1 Rfc8 23. h3 h6 24. Qa6 Qc3 25. Re2 Qb4 (25... Rd7 $11) 26. Red2 ({White should try} 26. Bxd5 $16 g6 27. Bf3) 26... Rc1 $11 27. Rd4 (27. Bxd5 R8c2 28. Rd3 Qh4 29. Qxa7 (29. g3 $2 Qh5 $19) 29... Qxf2+ 30. Kh2 Nxd5 31. Qa8+ Kh7 32. Qxd5 Rxd1 33. Rxd1 Rxa2 $15) 27... Rxd1+ $1 28. Rxd1 Rc7 29. Qd3 Rc5 30. g3 Ne4 (30... g6 $11 {remains equal.}) 31. Kg2 (31. Bxe4 $16 Qxe4 32. Qxe4 dxe4 33. Rd8+ Kh7 34. Rd7) 31... Ra5 (31... Nc3 $11) 32. Qc2 (32. a3 $16 Qxa3 33. Bxe4 dxe4 34. Qxe4) 32... Rc5 33. Qb2 Nf6 (33... a5 $11 {keeps the balance.}) 34. a3 (34. Qe5 $16) 34... Qc3 $14 35. Qb1 Qe5 36. Rd4 Rc3 37. Qb2 (37. Qd1 $14) 37... Qc7 (37... Rd3 $5) 38. Bxd5 (38. b4 {is more complex.} Rc2 39. Qb3 Qc3 40. Bxd5 Nxd5 41. Qxd5 Qxe3 42. Rf4) 38... Nxd5 39. Rxd5 $11 {[%cal Od5d8][%mdl 4096] Endgame KQR-KQR} Qc6 40. e4 {[%cal Be3e4,Be4f5][%mdl 32]} f5 (40... Qf6 $11 41. Qe2 Rxb3) 41. Qe2 $16 ({Much worse is} 41. Rxf5 Qxe4+ 42. Kh2 Rc2 $15) 41... Rxb3 {[#]} 42. Qh5 $1 (42. Rxf5 $6 Rxa3 43. Rd5 Ra5 $14) 42... Qe6 {[#]} 43. Rd8+ $1 ({Reject} 43. Rxf5 $6 Qxe4+ 44. Kh2 Rxa3 $11) (43. Qxf5 $6 Qxf5 44. exf5 (44. Rxf5 Rxa3 45. Rd5 Kf8 $11) 44... Rxa3 $11) 43... Kh7 44. Qxf5+ Qxf5 45. exf5 Rxa3 {KR-KR} 46. g4 (46. Rd7 $16) 46... a5 $11 {[%cal Ba7a5,Ba5a4,Ba4a3][%mdl 32] The position is equal.} 47. Rb8 Rb3 48. h4 a4 49. Ra8 a3 50. f4 {aiming for g5.} Rb2+ 51. Kf3 Rb3+ $1 52. Ke2 {g5 is the strong threat.} Rb2+ 53. Ke3 {Black must now prevent g5.} Rb3+ $1 54. Ke2 Rb2+ 55. Ke3 {Hoping for g5.} Rb3+ $1 {Weighted Error Value: White=0.21 (precise) /Black=0.22 (precise)} 1/2-1/2

[Event "Svetozar Gligoric Masters 2022"]
[Site "Belgrade"]
[Date "2022.07.22"]
[Round "8.16"]
[White "Kushagra Mohan"]
[Black "Gavrilov, Maxim"]
[Result "1-0"]
[ECO "B19"]
[WhiteElo "2359"]
[BlackElo "2216"]
[Annotator "TA"]
[PlyCount "111"]
[EventDate "2022.07.18"]
[EventCountry "SRB"]
[SourceTitle "playchess.com"]
[Source "ChessBase"]
[SourceQuality "1"]
[TimeControl "40/5400+30:900+30"]

{[%evp 20,111,1,0,4,18,7,0,0,0,0,0,0,-7,0,0,0,0,-4,-8,0,-13,-6,-12,0,0,0,0,0,0,14,0,7,0,0,0,0,0,0,0,0,0,0,0,6,6,6,6,9,0,9,0,9,9,9,9,9,-52,-54,-114,-100,-100,-92,-85,-5,-5,-4,-4,0,0,0,0,29974,29975,29974,29976,29976,29977,29977,29978,29978,29979,29979,29980,29980,29981,29981,29982,29982,29983,29984,29985,29985,29985]} 1. e4 c6 2. d4 d5 3. Nd2 dxe4 4. Nxe4 Bf5 5. Ng3 Bg6 6. h4 h6 7. Nf3 Nd7 8. h5 Bh7 9. Bd3 Bxd3 10. Qxd3 e6 11. Bf4 Qa5+ {B19: Classical Caro-Kann: 4...Bf5 main line.} 12. Bd2 Bb4 13. c3 {[%cal Bc2c3,Bc3c4][%mdl 32]} Be7 {The position is equal.} 14. c4 Qc7 15. d5 cxd5 16. cxd5 Qd6 17. Qb3 {17.Qb3 was played by the boomers.} Ngf6 18. dxe6 Qxe6+ 19. Qxe6 (19. Kf1 {looks sharper.} Qa6+ 20. Kg1 O-O 21. Nf5) 19... fxe6 20. O-O-O Bc5 {[#]} 21. Be1 $146 ({Predecessor:} 21. Rhf1 O-O 22. Bc3 Nd5 23. Bd4 Rac8 24. Kb1 N7f6 25. Nh4 Bd6 26. Ng6 Rfe8 27. Bxf6 gxf6 {½-½ (47) Romanov,E (2437)-L'Ami,E (2515) Warsaw 2005}) 21... Rc8 22. Kb1 Ke7 23. Nd2 Nb6 {[%cal Bd7b6,Bb6d5,Bd5f6][%mdl 32]} 24. Nde4 Nbd5 25. f3 Rhd8 26. Nxf6 Nxf6 27. Bc3 Rxd1+ 28. Rxd1 Bd6 29. Ne4 Nxe4 30. fxe4 $11 {[%mdl 4096] Endgame KRB-KRB} e5 31. Rd3 Rf8 32. Rg3 Rf1+ 33. Kc2 Kf7 34. Kd3 b5 35. b3 a6 36. a4 Rf6 37. Ke2 Rf4 38. Rd3 (38. Rf3 $11) 38... Rxe4+ $15 39. Re3 {[#]} (39. Kf3 $15 Rf4+ 40. Ke2) 39... Rg4 $1 $17 40. axb5 axb5 ({But not} 40... Rxg2+ $6 41. Kf3 Ra2 42. b6 $11) 41. Bxe5 Bxe5 (41... Rxg2+ $17 42. Kf1 Rd2) 42. Rxe5 $11 Rxg2+ $17 {KR-KR} 43. Kf3 Rg5 44. Rxg5 hxg5 $11 {K3P-KPP} 45. Kg4 g6 $2 {[%mdl 8192] [#]} (45... b4 $11 46. Kxg5 Kg8) 46. h6 {White mates.} Kg8 47. Kxg5 b4 48. Kxg6 {KPP-KP} Kh8 49. Kf6 Kh7 50. Ke5 Kxh6 {KP-KP} 51. Kd5 Kg6 52. Kc5 Kf6 53. Kxb4 Ke7 54. Kc5 Kd8 55. Kb6 Kd7 56. Kb7 {Weighted Error Value: White=0.06 (flawless) /Black=0.21 (precise)} 1-0

[Event "Svetozar Gligoric Masters 2022"]
[Site "Belgrade"]
[Date "2022.07.22"]
[Round "8.17"]
[White "Joshua, A P"]
[Black "Tisaj, Domen"]
[Result "1/2-1/2"]
[ECO "D00"]
[WhiteElo "2153"]
[BlackElo "2355"]
[Annotator "TA"]
[PlyCount "82"]
[EventDate "2022.07.18"]
[EventCountry "SRB"]
[SourceTitle "playchess.com"]
[Source "ChessBase"]
[SourceQuality "1"]
[TimeControl "40/5400+30:900+30"]

{[%evp 9,82,-12,-10,-13,0,-60,0,0,0,0,16,14,22,28,23,23,12,20,22,18,30,26,25,12,20,20,38,19,25,0,0,0,0,0,7,0,0,-43,-28,-49,-8,-23,-4,-4,-4,-19,-9,-37,-37,-39,-37,-28,-18,-18,-18,-18,-18,-19,-19,-19,9,0,0,0,0,0,0,0,0,0,0,0,0,0,0]} 1. d4 e6 2. Nc3 d5 3. Bf4 Bd6 4. e3 Nf6 5. Bd3 Bxf4 6. exf4 {D00: 1 d4 d5: Unusual lines.} Qd6 {[#]} 7. Nb5 $146 (7. Qd2 $11) ({Predecessor:} 7. Qd2 c6 8. Nf3 O-O 9. O-O-O b5 10. Rhg1 a5 11. g4 a4 12. g5 Nfd7 13. Rg3 {1-0 (34) Buksa,N (2414)-Djordjevic,V (2350) Chess.com INT 2021}) 7... Qe7 (7... Qb6 $1 $15) 8. Nf3 $11 O-O 9. O-O a6 10. Nc3 c5 11. dxc5 Qxc5 12. Ne2 Bd7 13. Ned4 Nc6 14. c3 Nxd4 15. Nxd4 {[%cal Bf3d4,Bd4b3,Bb3c5][%mdl 32]} b5 16. Qd2 a5 17. a3 Rab8 18. b4 Qc7 19. Nb3 a4 20. Nc5 Bc8 {Inhibits Na6.} 21. Bb1 Nd7 22. Nd3 Bb7 23. Ba2 Rbc8 24. Rac1 Qd6 (24... Rfd8 $5 {[%cal Rd7f6]}) 25. Rfe1 Rc7 (25... d4 {is more complex.} 26. cxd4 Qxd4 27. Red1 Rfd8) 26. Ne5 {[%cal Oc3c4]} Rfc8 27. Nxd7 Qxd7 28. Qd4 Qd8 29. h3 Qf6 30. Re5 g6 (30... h5 {keeps more tension.} 31. h4 Kf8 32. f5 exf5 33. Rce1 g6) 31. Rxd5 {The position is equal.} Qxd4 32. Rxd4 Rxc3 33. Rxc3 Rxc3 34. Bxe6 {[%mdl 4096] Endgame KRB-KRB} Bc6 35. Bd7 Bxd7 36. Rxd7 Rxa3 {[#] Strongly threatening ...Ra1+. KR-KR} 37. Rb7 Ra1+ 38. Kh2 a3 39. Rxb5 Rb1 {And now ...a2 would win.} ({Resist} 39... a2 40. Rb8+ Kg7 41. Ra8 $16) 40. Ra5 Rxb4 41. Rxa3 Rxf4 {Weighted Error Value: White=0.10 (very precise) /Black=0.08 (flawless)} 1/2-1/2

[Event "Svetozar Gligoric Masters 2022"]
[Site "Belgrade"]
[Date "2022.07.22"]
[Round "8.18"]
[White "Ozer, Omer Faruk"]
[Black "Tamhankar, Siddhant"]
[Result "1-0"]
[ECO "B50"]
[WhiteElo "2317"]
[BlackElo "1811"]
[Annotator "TA"]
[PlyCount "87"]
[EventDate "2022.07.18"]
[EventCountry "SRB"]
[SourceTitle "playchess.com"]
[Source "ChessBase"]
[SourceQuality "1"]
[TimeControl "40/5400+30:900+30"]

{[%evp 13,87,6,13,0,66,67,66,66,61,67,67,67,70,67,70,61,69,58,70,72,72,70,70,49,52,58,54,58,53,52,54,51,48,45,34,24,51,29,89,77,77,4,75,84,128,119,97,108,401,109,95,108,452,441,422,414,503,493,614,614,650,645,618,591,517,0,2613,2365,29992,29993,29993,29993,29993,29994,29995,29996]} 1. e4 c5 2. Nf3 d6 3. c3 Nf6 4. Be2 g6 5. O-O Bg7 6. d3 {[%cal Bd2d3,Bd3d4,Bd4d5][%mdl 32]} Nc6 7. d4 O-O (7... Nxe4 8. d5 $16) 8. d5 {B50: Sicilian: 2...d6, Miscellaneous.} Ne5 (8... Na5 $1 $11) 9. Nxe5 $14 dxe5 10. f3 {White is slightly better.} Ne8 11. Be3 Qc7 12. c4 {[%cal Ob2b4] [#] White is more active.} Nd6 $146 ({Predecessor:} 12... b6 13. Nc3 Nd6 14. Qd2 Rd8 15. Kh1 a6 16. Rac1 Bd7 17. g4 f6 18. h4 Rf8 {1-0 (34) Jenull,M (2182)-Hintz,B Willingen 2001}) 13. Nc3 Bd7 14. a3 f5 15. Qd3 Rf7 16. b4 b6 17. bxc5 bxc5 18. a4 a6 19. a5 Rb8 20. Rfb1 {Hoping for Rxb8+.} Rff8 {[%cal Bf7f8,Bf8b8,Bb8b4][%mdl 32]} 21. Qc2 Rxb1+ 22. Nxb1 Rb8 23. Nd2 Rb4 24. Bd3 Bf6 25. Ra3 Bh4 (25... e6 $11 {keeps the balance.}) 26. g3 Bf6 27. Qa2 ({White should try} 27. Nb3 $16) 27... f4 (27... e6 $11) 28. Bf2 $1 $16 ({Wrong is} 28. gxf4 $2 exf4 29. Bf2 (29. Bxf4 $2 Bd4+ 30. Kh1 Rb2 $19) 29... Rb2 $19) 28... fxg3 29. hxg3 Bg5 30. Nb3 Nxc4 $2 {[%mdl 8192]} (30... Nb7 $16) 31. Bxc4 $2 (31. Nxc5 $18 {and the rest is easy.} Nd6 32. Bxa6) 31... Rxc4 {[#]} 32. d6 $1 exd6 {[%mdl 8192]} (32... Qxd6 $16 {is tougher.} 33. Nd2 Qxd2 34. Qxc4+ Kg7) 33. Nd2 $18 Bxd2 34. Qxc4+ Kg7 35. Qxa6 c4 36. Qb6 Qc6 37. Ra2 c3 38. a6 Qc4 {[#]} 39. Qb1 ({Not} 39. Rxd2 $2 cxd2 40. Qxd6 Qc1+ 41. Kg2 d1=Q $19) (39. Qxd6 $1 $18 Qxa2 40. Qxd7+ Qf7 41. Qd3) 39... Bh3 {[%mdl 8192]} (39... Be6 $11 40. Qb7+ Kh6) 40. a7 Qe2 41. a8=Q {White mates.} Qxf3 42. Ra7+ Kh6 {[#]} 43. Rxh7+ $3 Kxh7 (43... Kg5 44. Rxh3) 44. Qbb7+ {Weighted Error Value: White=0.33/Black=0.61} 1-0

[Event "Svetozar Gligoric Masters 2022"]
[Site "Belgrade"]
[Date "2022.07.22"]
[Round "8.19"]
[White "Yordanov, Lachezar"]
[Black "Ilamparthi A R"]
[Result "0-1"]
[ECO "E73"]
[WhiteElo "2316"]
[BlackElo "2153"]
[Annotator "TA"]
[PlyCount "114"]
[EventDate "2022.07.18"]
[EventCountry "SRB"]
[SourceTitle "playchess.com"]
[Source "ChessBase"]
[SourceQuality "1"]
[TimeControl "40/5400+30:900+30"]

{[%evp 13,114,55,55,43,63,68,54,62,62,58,64,72,70,64,64,61,67,58,105,41,118,19,62,51,79,69,162,78,85,77,125,75,121,57,146,123,146,30,43,35,33,22,33,0,0,0,0,0,0,7,10,0,0,-102,-92,-118,-107,-159,-150,-143,-120,-112,-117,-105,-10,-164,-160,-185,-159,-233,-237,-351,-350,-349,-354,-355,-312,-528,-286,-644,-659,-705,-679,-688,-677,-1303,-1239,-1198,-1125,-29980,-29981,-29987,-29988,-29988,-29989,-29989,-29990,-29990,-29991,-29991,-29992,-29992,-29993]} 1. d4 Nf6 2. c4 g6 3. Nc3 Bg7 4. e4 d6 5. Be2 O-O 6. Be3 e5 7. d5 Na6 8. g4 {E73: King's Indian: Averbakh Variation without 6...c5.} Nc5 9. f3 h5 {The modern move.} 10. g5 {White is slightly better.} Nh7 11. h4 f6 12. gxf6 Bxf6 13. Bf2 Be7 14. Kd2 c6 15. Kc2 cxd5 16. cxd5 (16. Qxd5+ $16 Be6 17. Qd2) 16... Qc7 (16... Bd7 $14) 17. Qe1 (17. Nb5 $1 $16 {[%cal Rb5c7]} Qd8 18. Bxc5 dxc5 19. d6 Bxh4 20. Qd5+ Kh8 21. Rd1 (21. Qxe5+ Bf6 $11)) 17... Bd7 (17... Na4 {is interesting.} 18. Rc1 Nxc3 19. bxc3 b5) 18. Rc1 $1 {[#]} Rab8 $146 ({Predecessor:} 18... b5 19. Kb1 b4 20. Nd1 Rab8 21. Qf1 Qa5 22. Bxc5 dxc5 23. Ne3 Rf4 24. Qg2 Nf8 {½-½ (33) Niedbala,B (2379)-Weinzettl,E (2166) Bohumin 2020}) 19. Kb1 b5 (19... Qa5 $14) 20. Nd1 (20. b4 $18) 20... a5 21. Nh3 Rfc8 (21... Be8 $142) 22. Qd2 (22. f4 $142) 22... Kg7 (22... Bf6 $142) 23. Ne3 (23. Be3 $16) 23... Qd8 (23... Bf8 $14) 24. Rcg1 $1 $16 Qf8 {Prevents Nf5+.} 25. Ka1 (25. Qxa5 $2 b4 26. Nc4 Rb5 $19) (25. Bd1 $16) 25... Rc7 $11 26. Nf5+ (26. Qxa5 Nb3+ $1 27. axb3 Ra8 28. Qxa8 Qxa8+ 29. Kb1 Qc8 $17) 26... Bxf5 27. exf5 (27. Be3 {is more complex.} Kh8 28. exf5 Qxf5 29. Bxc5 Rxc5 30. Bd3) 27... Qxf5 28. Bxc5 Rxc5 {[%cal Bc7c5,Bc5d5,Bd5d2,Bd2h2][%mdl 32]} 29. Bd3 $1 Rxd5 30. Bxf5 {[%cal Od2h6] Threatening mate with Qh6+!} Rxd2 31. Rxg6+ Kf7 $1 32. Rhg1 {Threatens to win with Rg7+.} Nf8 33. Rg7+ (33. Ng5+ $11 {keeps the balance.} Bxg5 34. R6xg5) 33... Kf6 $1 $17 (33... Ke8 34. Kb1 $15) 34. Bb1 {[#]} Rh2 $1 35. R7g3 {[#]} ({White should try} 35. Be4 Rc8 36. R7g3) 35... d5 $1 ({Not} 35... Ke6 36. f4 $17) 36. Rc1 {Prevents Bc5.} Kf7 ({And not} 36... Ke6 37. Ng5+ Kd7 38. Rd1 $15) 37. Ng5+ Ke8 38. Nh7 Kd7 ({But not} 38... Bxh4 $6 39. Rg7 $11) (38... a4 $17 {And now ...a3 would win.} 39. Rg8 Rxh4 40. Nxf8 Bxf8) 39. Bf5+ $2 {This move loses the game for White.} (39. Rg7 $1 $11 {and White has nothing to worry.}) 39... Kd6 $19 40. Ng5 Bxg5 41. hxg5 (41. Rxg5 $17 Rxh4 42. Rd1) 41... Ne6 42. Bxe6 (42. g6 $142 h4 43. Rg4) 42... Kxe6 {[%mdl 4096] Endgame KRR-KRR} 43. g6 h4 44. Rg4 h3 45. Rg3 $2 (45. a4 {was worth a try.} bxa4 46. g7) 45... Rc8 {[%cal Rc8c1]} 46. Rb1 (46. Kb1 Rg8 47. Rc2 Rh1+ 48. Rc1 Rxc1+ 49. Kxc1) 46... d4 47. a4 b4 {[%cal Bb5b4,Bb4b3][%mdl 32]} 48. g7 Kf7 49. Re1 b3 {Strongly threatening ...d3.} 50. f4 {[#]} Re2 $3 {[%cal Re2e1][%mdl 512]} 51. Rh1 (51. Rd1 Re3) 51... Re3 {Black mates.} 52. Rg5 d3 {[%cal Bd4d3,Bd3d2][%mdl 32]} 53. Rf5+ Kg8 54. fxe5 d2 55. Rff1 Rxe5 56. Rd1 Re2 57. Kb1 h2 {Weighted Error Value: White=0.51/Black=0.16 (very precise)} 0-1

[Event "Svetozar Gligoric Masters 2022"]
[Site "Belgrade"]
[Date "2022.07.22"]
[Round "8.20"]
[White "Nitish Belurkar"]
[Black "Makaraci, Tunahan"]
[Result "1/2-1/2"]
[ECO "B38"]
[WhiteElo "2460"]
[BlackElo "2130"]
[Annotator "TA"]
[PlyCount "114"]
[EventDate "2022.07.18"]
[EventCountry "SRB"]
[SourceTitle "playchess.com"]
[Source "ChessBase"]
[SourceQuality "1"]
[TimeControl "40/5400+30:900+30"]

{[%evp 15,114,0,34,0,44,20,11,10,19,13,20,-5,26,0,24,15,27,18,12,14,31,17,29,29,19,20,37,14,17,29,41,38,31,19,22,11,37,0,33,38,33,35,41,38,32,0,0,0,0,0,0,0,0,-6,49,38,61,29,64,0,0,0,0,0,25,36,54,37,64,8,29,8,8,8,8,8,8,8,8,8,8,8,8,8,8,8,8,8,8,8,8,8,8,8,8,8,8,8,8,8,8]} 1. e4 c5 2. Nf3 Nc6 3. d4 cxd4 4. Nxd4 g6 5. c4 Bg7 6. Be3 Qb6 7. Nb3 Qd8 8. Nd4 Qb6 {[%cal Rc6d4]} 9. Nb3 {B38: Sicilian: Maroczy Bind with 5...Bg7 and 7...0-0.} (9. Nb5 $5 {[%cal Re3b6]} Qa5+ 10. N1c3 $14) 9... Qd8 10. Nc3 Bxc3+ {10...Bxc3+ has lost popularity.} 11. bxc3 Nf6 12. f3 d6 13. Qd2 b6 {[#]} 14. Bd4 $146 ({Predecessor:} 14. Bh6 Rg8 15. Rd1 Qc7 16. Nd4 Ne5 17. Nb5 Qc6 18. Bg5 Nfd7 19. Qd5 Qxd5 20. cxd5 f6 21. Nc7+ Kd8 22. Ne6+ {1-0 (47) Hardaway,B (2169)-Canty,J (2201) New York 2022}) 14... Nxd4 15. cxd4 O-O 16. Be2 e5 17. O-O Ba6 18. Qb2 Re8 19. Rfd1 Qc7 20. Rac1 Rad8 21. Rd2 Bb7 22. Rcd1 Rc8 23. Qa3 Kg7 24. Rc1 {[%cal Bd1c1,Bc1c5,Bc5c7,Bc7d7][%mdl 32]} ({Don't go for} 24. Qxa7 $2 Ra8 25. Qxa8 Rxa8 $19) 24... Red8 25. Qb2 ({Not} 25. Qxa7 $2 Ra8 26. Qxa8 Rxa8 $19) 25... Qe7 26. c5 bxc5 (26... exd4 {is more complex.} 27. cxb6 d5 28. e5 Qxe5 29. bxa7 Qe3+) 27. dxe5 dxe5 28. Rxd8 Rxd8 29. Rxc5 Nd7 30. Rc7 Qb4 {[#] White must now prevent ...Qb6+.} 31. Qc1 Qb6+ 32. Kf1 Ba6 33. Qc6 Bxe2+ 34. Kxe2 Qg1 35. Rxd7 $14 {Chess con chili.} Qxg2+ 36. Ke3 Qg1+ 37. Kd2 (37. Kd3 $1 $14 Qf1+ 38. Kc2 Rxd7 39. Qxd7) 37... Qxh2+ 38. Kc3 Rxd7 39. Qxd7 Qf4 40. Nd2 Qe3+ 41. Qd3 Qf4 42. Nf1 (42. Qa6 $14) 42... h5 43. Qe3 Qxe3+ {The position is equal.} 44. Nxe3 $11 {[%mdl 4096] Endgame KN-KP} Kf6 45. Kd3 Kg5 46. Ke2 f5 47. exf5 gxf5 48. Nd5 h4 49. a4 e4 50. a5 Kg6 51. a6 exf3+ 52. Kxf3 {KN-K3P} Kf7 53. Nc7 Ke7 54. Nb5 Kd7 55. Nxa7 Kc7 56. Nb5+ Kb6 57. a7 Kb7 {Weighted Error Value: White=0.10 (very precise) /Black=0.08 (flawless)} 1/2-1/2